bitfinex/quotes_BTCUSD_20240101
["timestamp","ask_amount","ask_price","bid_price","bid_amount"]
[1704142841123,0.57932,43774.0,43770.0,0.023]
[1704142841986,0.57932,43774.0,43768.0,0.7159]
[1704142841987,0.32837711,43773.0,43768.0,0.7159]
[1704142842198,0.365555,43769.0,43768.0,0.7159]
[1704142842410,0.365555,43769.0,43768.0,0.7069]
[1704142842800,0.365555,43769.0,43768.0,0.6999]
[1704142844233,0.366555,43769.0,43768.0,0.7039]
[1704142844464,0.366555,43769.0,43768.0,0.6999]
[1704142844465,0.365555,43769.0,43768.0,0.6999]
[1704142844665,0.365555,43769.0,43768.0,0.7089]
[1704142845091,0.365555,43769.0,43768.0,0.7029]
[1704142845850,0.365555,43769.0,43768.0,0.6999]
[1704142846289,0.002,43769.0,43768.0,0.76646]
[1704142846517,0.579316,43774.0,43771.0,0.01]
[1704142846720,0.81253311,43774.0,43771.0,0.01]
[1704142846945,0.579316,43774.0,43771.0,0.01]
[1704142847833,0.582316,43774.0,43771.0,0.01]
[1704142848058,0.579316,43774.0,43771.0,0.01]
[1704142848281,0.580316,43774.0,43771.0,0.01]
[1704142848497,0.580316,43774.0,43773.0,0.6999]
[1704142848706,0.2148,43774.0,43773.0,0.6999]
[1704142848879,0.2148,43774.0,43773.0,0.7229]
[1704142850012,0.2158,43774.0,43773.0,0.7229]
[1704142850863,0.2138,43774.0,43773.0,0.7229]
[1704142851328,0.2138,43774.0,43773.0,0.7239]
[1704142851755,0.2138,43774.0,43773.0,0.7229]
[1704142851971,0.365493,43777.0,43774.0,0.01]
[1704142852638,0.365493,43777.0,43776.0,0.6999]
[1704142853556,0.367493,43777.0,43776.0,0.6999]
[1704142853773,0.365493,43777.0,43776.0,0.6999]
[1704142854172,0.370493,43777.0,43776.0,0.7009]
[1704142854393,0.373493,43777.0,43776.0,0.7009]
[1704142854753,0.370493,43777.0,43776.0,0.7009]
[1704142855174,0.376493,43777.0,43776.0,0.7009]
[1704142855377,0.371493,43777.0,43776.0,0.6999]
[1704142855723,0.379493,43777.0,43776.0,0.7009]
[1704142855943,0.371493,43777.0,43776.0,0.6999]
[1704142856148,0.376493,43777.0,43776.0,0.7009]
[1704142856545,0.371493,43777.0,43776.0,0.6999]
[1704142856718,0.379493,43777.0,43776.0,0.7009]
[1704142857075,0.379493,43777.0,43776.0,0.6999]
[1704142857076,0.365493,43777.0,43776.0,0.6999]
[1704142857296,0.368493,43777.0,43776.0,0.6999]
[1704142857750,0.365493,43777.0,43776.0,0.6999]
[1704142858197,0.377493,43777.0,43776.0,0.7009]
[1704142858884,0.377495,43777.0,43776.0,0.7009]
[1704142859347,0.371495,43777.0,43776.0,0.6999]
[1704142859811,0.365495,43777.0,43776.0,0.6999]
[1704142860046,0.82962244,43777.0,43776.0,0.6999]
[1704142860299,1.0336392,43777.0,43776.0,0.6999]
[1704142860523,1.3130112,43777.0,43776.0,0.6999]
[1704142860759,1.2945134,43777.0,43776.0,0.7009]
[1704142860988,1.32183493,43777.0,43776.0,0.7009]
[1704142861212,1.31583493,43777.0,43776.0,0.7009]
[1704142861544,1.32185667,43777.0,43776.0,0.7009]
[1704142862022,1.32185667,43777.0,43776.0,0.2901]
[1704142862023,2.01290232,43777.0,43776.0,0.2901]
[1704142862253,1.85618232,43777.0,43776.0,0.2901]
[1704142862730,1.49068732,43777.0,43776.0,0.001]
[1704142863201,0.14344,43773.0,43772.0,0.6999]
[1704142863435,0.74217911,43773.0,43772.0,0.6999]
[1704142863668,0.82416069,43773.0,43765.0,0.06656]
[1704142863889,0.05465475,43771.0,43765.0,0.06656]
[1704142864185,0.28787186,43771.0,43766.0,0.01]
[1704142864624,0.28787186,43771.0,43770.0,0.6999]
[1704142865072,0.28887186,43771.0,43770.0,0.6999]
[1704142866397,0.65340986,43771.0,43770.0,0.6999]
[1704142866694,0.001,43771.0,43770.0,0.75746]
[1704142866930,0.05465475,43774.0,43770.0,0.79046]
[1704142867151,0.05465475,43777.0,43773.0,0.01]
[1704142867372,0.67023675,43778.0,43770.0,0.79046]
[1704142867629,0.90345386,43778.0,43773.0,0.01]
[1704142867865,0.90345386,43778.0,43771.0,0.023]
[1704142867866,0.2501,43778.0,43777.0,0.06656]
[1704142868105,6e-05,43780.0,43778.0,0.06656]
[1704142869725,6e-05,43780.0,43779.0,0.6999]
[1704142870658,0.00106,43780.0,43779.0,0.6999]
[1704142871343,0.05671475,43780.0,43779.0,0.7049]
[1704142871577,0.05571475,43780.0,43779.0,0.6999]
[1704142871769,0.05470934,43780.0,43779.0,0.6999]
[1704142872968,0.00106,43780.0,43779.0,0.7049]
[1704142873192,0.00106,43780.0,43779.0,0.7059]
[1704142873419,0.00206,43780.0,43779.0,0.76646]
[1704142873677,0.00106,43780.0,43779.0,0.76246]
[1704142874114,0.00206,43780.0,43779.0,0.76746]
[1704142874347,0.00206,43780.0,43779.0,0.76146]
[1704142874581,0.00106,43780.0,43779.0,0.76146]
[1704142874809,0.00106,43780.0,43779.0,0.76646]
[1704142876137,0.00106,43780.0,43779.0,0.76146]
[1704142876364,0.00206,43780.0,43779.0,0.76746]
[1704142876579,0.00106,43780.0,43779.0,0.76246]
[1704142876780,0.05570934,43780.0,43779.0,0.76246]
[1704142876990,0.05670934,43780.0,43779.0,0.76746]
[1704142877459,0.05676262,43780.0,43779.0,0.76746]
[1704142878163,0.05676262,43780.0,43779.0,0.79046]
[1704142879018,0.05576262,43780.0,43779.0,0.78446]
[1704142879247,0.00106,43780.0,43779.0,0.78446]
[1704142879750,0.00106,43780.0,43779.0,0.78646]
[1704142880006,0.00106,43780.0,43779.0,0.79246]
[1704142880007,0.05676262,43780.0,43779.0,0.79246]
[1704142880245,0.05476262,43780.0,43779.0,0.77946]
[1704142880479,0.05676262,43780.0,43779.0,0.79246]
[1704142881621,0.00206,43780.0,43779.0,0.79246]
[1704142882507,0.05676262,43780.0,43779.0,0.79246]
[1704142882980,0.00206,43780.0,43779.0,0.79246]
[1704142883429,0.00206,43780.0,43779.0,0.80426]
[1704142884623,0.00206,43780.0,43779.0,0.79246]
[1704142887927,0.05676262,43780.0,43779.0,0.79246]
[1704142888420,0.05675057,43780.0,43779.0,0.79246]
[1704142890375,0.00206,43780.0,43779.0,0.79246]
[1704142890592,0.08409585,43780.0,43779.0,0.79246]
[1704142890804,0.0567634,43780.0,43779.0,0.79246]
[1704142891480,0.05676861,43780.0,43779.0,0.79246]
[1704142891699,0.00206,43780.0,43779.0,0.79246]
[1704142891915,0.05676876,43780.0,43779.0,0.79246]
[1704142901154,0.09530461,43781.0,43779.0,0.79246]
[1704142901366,0.09530461,43781.0,43780.0,0.023]
[1704142901787,0.01326876,43781.0,43780.0,0.023]
[1704142902212,0.09530461,43781.0,43780.0,0.023]
[1704142902484,0.09630461,43781.0,43780.0,0.023]
[1704142902699,0.09730461,43781.0,43780.0,0.028]
[1704142903139,0.86797034,43781.0,43780.0,0.005]
[1704142903355,0.99611131,43781.0,43780.0,0.005]
[1704142903575,1.9175644,43781.0,43780.0,0.7049]
[1704142903813,1.9175644,43781.0,43780.0,0.2891]
[1704142903814,2.0895444,43781.0,43780.0,0.2891]
[1704142904034,2.0895444,43781.0,43780.0,0.2951]
[1704142904035,2.27312507,43781.0,43780.0,0.2951]
[1704142904261,0.1,43771.0,43768.0,0.05]
[1704142904512,0.50237557,43769.0,43768.0,0.05]
[1704142904735,0.98962215,43769.0,43768.0,0.05]
[1704142905085,0.90410158,43769.0,43767.0,0.6999]
[1704142905296,0.9622346,43768.0,43767.0,0.6999]
[1704142905498,0.9622346,43768.0,43764.0,0.05656]
[1704142905714,0.0820681,43767.0,43764.0,0.05656]
[1704142906516,0.0820681,43767.0,43766.0,0.6999]
[1704142907167,0.001,43767.0,43766.0,0.6999]
[1704142907371,0.0820681,43767.0,43766.0,0.6999]
[1704142907856,0.0820681,43767.0,43766.0,0.7029]
[1704142908059,0.0820681,43767.0,43766.0,0.7069]
[1704142908329,0.68084821,43768.0,43766.0,0.7069]
[1704142908475,0.68084821,43768.0,43766.0,0.7029]
[1704142908880,0.68084821,43768.0,43767.0,0.01]
[1704142909677,0.59878011,43768.0,43767.0,0.7099]
[1704142909887,0.68084821,43768.0,43767.0,0.7099]
[1704142910138,0.60078011,43768.0,43767.0,0.6999]
[1704142910765,0.68284821,43768.0,43767.0,0.6999]
[1704142910976,0.31728521,43768.0,43767.0,0.6999]
[1704142911209,0.60178011,43768.0,43767.0,0.7099]
[1704142911632,0.60078011,43768.0,43767.0,0.7099]
[1704142911843,0.73354821,43768.0,43767.0,0.7099]
[1704142912274,0.73754821,43768.0,43767.0,0.7099]
[1704142913240,0.60478011,43768.0,43767.0,0.7099]
[1704142913991,0.23921711,43768.0,43767.0,0.7099]
[1704142914450,0.60478011,43768.0,43767.0,0.7099]
[1704142914680,0.65942274,43768.0,43767.0,0.7099]
[1704142914913,0.60478011,43768.0,43767.0,0.7099]
[1704142917236,0.60478011,43768.0,43767.0,0.76646]
[1704142917237,0.006,43768.0,43767.0,0.76646]
[1704142917474,0.006,43768.0,43767.0,0.78946]
[1704142918434,0.004,43768.0,43767.0,1.38824911]
[1704142918909,0.2076,43779.0,43775.0,0.01]
[1704142919140,0.2076,43779.0,43776.0,0.023]
[1704142919344,0.46997063,43780.0,43777.0,0.05656]
[1704142919562,0.42011063,43780.0,43778.0,0.6999]
[1704142919834,0.365468,43780.0,43778.0,0.6999]
[1704142920080,0.411548,43780.0,43778.0,0.6999]
[1704142920539,0.411548,43780.0,43779.0,0.6999]
[1704142920540,0.412548,43780.0,43779.0,0.6999]
[1704142920767,0.28785974,43780.0,43779.0,0.6999]
[1704142920982,0.90100821,43780.0,43779.0,0.6999]
[1704142921651,0.90300821,43780.0,43779.0,0.6999]
[1704142922290,0.90100821,43780.0,43779.0,0.6999]
[1704142923389,1.00500821,43780.0,43779.0,0.6999]
[1704142923611,0.92294011,43780.0,43779.0,0.6999]
[1704142923836,1.28300328,43780.0,43779.0,0.6999]
[1704142924482,0.1,43777.0,43776.0,0.6999]
[1704142924690,0.69870511,43777.0,43776.0,0.6999]
[1704142924897,0.75228511,43777.0,43776.0,0.6999]
[1704142925794,0.80690048,43777.0,43776.0,0.6999]
[1704142926023,0.75332048,43777.0,43776.0,0.7039]
[1704142927098,0.65332048,43777.0,43776.0,0.7039]
[1704142927318,0.69870511,43777.0,43776.0,0.7069]
[1704142928258,0.69870511,43777.0,43776.0,0.7029]
[1704142928467,0.59870511,43777.0,43776.0,0.7029]
[1704142928681,0.65332048,43777.0,43776.0,0.7009]
[1704142928910,0.80276048,43777.0,43776.0,0.7009]
[1704142929132,1.17166408,43777.0,43776.0,0.7009]
[1704142929344,1.20964408,43777.0,43776.0,0.7009]
[1704142929561,1.30594408,43777.0,43776.0,0.7009]
[1704142930038,1.97359718,43777.0,43776.0,0.54385822]
[1704142930286,1.97359718,43777.0,43776.0,0.18267509]
[1704142930521,1.97359718,43777.0,43766.0,0.6999]
[1704142930522,0.1,43770.0,43766.0,0.6999]
[1704142930759,0.05463781,43767.0,43766.0,0.6999]
[1704142930995,0.28785492,43767.0,43766.0,0.6999]
[1704142931455,0.33285492,43767.0,43763.0,0.06656]
[1704142931888,0.27821711,43767.0,43766.0,0.003]
[1704142932141,0.27321711,43767.0,43766.0,0.003]
[1704142932619,0.27321711,43767.0,43766.0,0.7029]
[1704142933514,0.96418583,43767.0,43766.0,0.7029]
[1704142933732,1.27365269,43767.0,43766.0,0.7029]
[1704142933954,0.1,43757.0,43754.0,0.05]
[1704142934205,0.1,43757.0,43750.0,0.05656]
[1704142934206,0.59888411,43756.0,43750.0,0.05656]
[1704142934822,0.65882411,43756.0,43754.0,0.6999]
[1704142935063,0.532272,43755.0,43754.0,0.6999]
[1704142935341,0.76548911,43755.0,43754.0,0.6999]
[1704142935561,0.8200943,43755.0,43747.0,0.01]
[1704142935787,0.8200943,43755.0,43748.0,0.05656]
[1704142935788,0.23321711,43754.0,43748.0,0.05656]
[1704142936014,0.365691,43753.0,43748.0,0.05656]
[1704142936249,0.23321711,43752.0,43748.0,0.05656]
[1704142936477,0.28133711,43752.0,43748.0,0.06656]
[1704142936704,0.28133711,43752.0,43748.0,0.05656]
[1704142936932,0.05946,43751.0,43748.0,0.06656]
[1704142937183,0.05946,43751.0,43748.0,0.01]
[1704142937407,0.23321711,43750.0,43748.0,0.01]
[1704142938075,0.05058,43749.0,43748.0,0.01]
[1704142938309,0.05058,43749.0,43748.0,0.013]
[1704142938537,0.05058,43749.0,43748.0,0.01]
[1704142938770,0.05058,43749.0,43748.0,0.011]
[1704142939238,0.05058,43749.0,43748.0,0.01]
[1704142939723,0.05058,43749.0,43748.0,0.012]
[1704142939962,0.05058,43749.0,43748.0,0.002]
[1704142940193,0.05058,43749.0,43746.0,0.01]
[1704142940448,0.35907131,43749.0,43748.0,0.004]
[1704142940676,0.688702,43749.0,43748.0,0.004]
[1704142941127,0.687702,43749.0,43748.0,0.004]
[1704142941351,0.92091911,43749.0,43748.0,0.004]
[1704142941981,0.90673911,43749.0,43748.0,0.005]
[1704142942444,0.90673911,43749.0,43748.0,0.001]
[1704142942445,0.372722,43749.0,43748.0,0.001]
[1704142942680,0.372722,43749.0,43748.0,1.06003711]
[1704142942681,0.007,43749.0,43748.0,1.06003711]
[1704142942919,0.007,43749.0,43748.0,1.09025711]
[1704142943163,0.007,43749.0,43748.0,1.09125711]
[1704142943622,0.05,43766.0,43763.0,0.05656]
[1704142943913,0.05,43766.0,43756.0,0.4]
[1704142943914,0.05,43766.0,43765.0,0.05656]
[1704142944152,0.05,43766.0,43765.0,0.06656]
[1704142944858,0.03055,43771.0,43765.0,0.06656]
[1704142945094,0.001,43766.0,43765.0,0.07056]
[1704142945323,0.001,43766.0,43765.0,0.09356]
[1704142946027,0.002,43766.0,43765.0,0.09356]
[1704142946693,0.002,43766.0,43765.0,0.79346]
[1704142946909,0.001,43766.0,43765.0,0.79346]
[1704142947126,0.54905,43777.0,43765.0,0.79346]
[1704142947127,0.29597,43777.0,43769.0,0.06656]
[1704142947347,0.23321711,43776.0,43772.0,0.05656]
[1704142947798,0.04458,43775.0,43770.0,0.05656]
[1704142948032,0.04458,43775.0,43765.0,0.7289]
[1704142948033,0.1,43772.0,43765.0,0.76546]
[1704142948246,0.23321711,43771.0,43765.0,0.76546]
[1704142948473,0.28703711,43771.0,43766.0,0.01]
[1704142948764,0.28703711,43771.0,43770.0,0.6999]
[1704142948765,0.23321711,43771.0,43770.0,0.6999]
[1704142949420,0.28211711,43771.0,43770.0,0.6999]
[1704142949649,0.28211711,43771.0,43769.0,0.6999]
[1704142949859,0.23321711,43771.0,43769.0,0.75646]
[1704142950080,0.2098,43773.0,43770.0,0.05656]
[1704142950304,0.23321711,43772.0,43770.0,0.05656]
[1704142950515,0.23321711,43772.0,43770.0,0.75646]
[1704142950752,0.03055,43777.0,43771.0,0.05656]
[1704142950753,0.39051,43777.0,43771.0,0.05656]
[1704142950960,0.23321711,43776.0,43771.0,0.05656]
[1704142952257,0.23321711,43776.0,43771.0,0.05756]
[1704142952258,0.27755711,43776.0,43771.0,0.05756]
[1704142952480,0.04494,43775.0,43771.0,0.05756]
[1704142952706,0.23321711,43774.0,43771.0,0.05756]
[1704142953581,0.23321711,43774.0,43771.0,0.05856]
[1704142953831,0.04524,43773.0,43771.0,0.05656]
[1704142954505,0.23321711,43774.0,43771.0,0.05656]
[1704142954953,0.23321711,43774.0,43771.0,0.05956]
[1704142955435,0.23321711,43774.0,43771.0,0.05656]
[1704142955653,0.23421711,43774.0,43773.0,0.6999]
[1704142956768,0.46748174,43774.0,43773.0,0.6999]
[1704142957865,0.46648174,43774.0,43773.0,0.6999]
[1704142958091,0.46848174,43774.0,43773.0,0.6999]
[1704142958343,0.47248174,43774.0,43773.0,0.7009]
[1704142958575,0.29681711,43774.0,43773.0,0.6999]
[1704142958795,0.30581711,43774.0,43773.0,0.7009]
[1704142959024,0.28745711,43774.0,43773.0,0.7009]
[1704142959460,0.24221711,43774.0,43773.0,0.7009]
[1704142961194,0.16921711,43774.0,43773.0,0.7009]
[1704142961423,0.17121711,43774.0,43773.0,0.7009]
[1704142961662,0.16521711,43774.0,43773.0,0.6999]
[1704142961840,0.16921711,43774.0,43773.0,0.7009]
[1704142963136,0.38344309,43774.0,43773.0,0.7009]
[1704142963286,0.22201711,43774.0,43773.0,0.7009]
[1704142963503,0.16921711,43774.0,43773.0,0.7009]
[1704142963976,0.21355711,43774.0,43773.0,0.7009]
[1704142964878,0.37167022,43774.0,43773.0,0.7009]
[1704142966191,0.32733022,43774.0,43773.0,0.7009]
[1704142966641,0.37221022,43774.0,43773.0,0.7009]
[1704142966869,0.82305011,43774.0,43773.0,0.7009]
[1704142967085,1.22788742,43774.0,43773.0,0.7009]
[1704142967321,1.4815339,43774.0,43773.0,0.7009]
[1704142967528,1.49679468,43774.0,43773.0,0.001]
[1704142968008,1.66141945,43774.0,43773.0,0.001]
[1704142968226,0.1,43767.0,43766.0,0.6999]
[1704142968442,0.33321711,43767.0,43766.0,0.6999]
[1704142968661,0.33321711,43767.0,43765.0,0.6999]
[1704142968896,0.23321711,43766.0,43765.0,0.6999]
[1704142969336,0.30299711,43766.0,43765.0,0.6999]
[1704142970025,0.4685787,43766.0,43765.0,0.6999]
[1704142970210,0.30299711,43766.0,43765.0,0.6999]
[1704142971060,0.30799711,43766.0,43765.0,0.7009]
[1704142971614,0.31099711,43766.0,43765.0,0.7009]
[1704142971830,0.29479711,43766.0,43765.0,0.7009]
[1704142973247,0.29179711,43766.0,43765.0,0.7009]
[1704142973813,0.28679711,43766.0,43765.0,0.6999]
[1704142973992,0.29279711,43766.0,43765.0,0.7009]
[1704142974202,0.28879711,43766.0,43765.0,0.6999]
[1704142974451,0.28679711,43766.0,43765.0,0.7009]
[1704142974668,0.29479711,43766.0,43765.0,0.7009]
[1704142974878,0.28979711,43766.0,43765.0,0.6999]
[1704142975091,0.29379711,43766.0,43765.0,0.7009]
[1704142976120,0.29079711,43766.0,43765.0,0.7009]
[1704142976545,0.29279711,43766.0,43765.0,0.7009]
[1704142977609,0.29051388,43766.0,43765.0,0.7009]
[1704142980180,0.28927174,43766.0,43765.0,0.7009]
[1704142981357,0.92649174,43766.0,43765.0,0.7009]
[1704142981587,1.07158199,43766.0,43765.0,0.001]
[1704142982033,0.70600199,43766.0,43765.0,0.001]
[1704142982243,1.07158199,43766.0,43765.0,0.001]
[1704142983928,1.01703174,43766.0,43765.0,0.001]
[1704142984128,1.07163235,43766.0,43765.0,0.001]
[1704142984280,1.09885712,43766.0,43765.0,0.001]
[1704142984481,1.34941368,43766.0,43765.0,0.001]
[1704142984714,1.09895775,43766.0,43765.0,0.001]
[1704142985300,1.84848306,43766.0,43765.0,0.001]
[1704142985516,1.71134999,43766.0,43765.0,0.001]
[1704142985743,2.74250999,43766.0,43765.0,0.001]
[1704142985947,2.90616072,43766.0,43765.0,0.001]
[1704142986711,2.75478072,43766.0,43765.0,0.001]
[1704142987085,0.24344,43757.0,43756.0,0.6999]
[1704142987343,0.84231211,43757.0,43756.0,0.6999]
[1704142987569,0.1,43755.0,43754.0,0.6999]
[1704142987785,0.43132537,43755.0,43754.0,0.6999]
[1704142988219,0.53719951,43755.0,43754.0,0.6999]
[1704142988439,0.71222877,43755.0,43754.0,0.6999]
[1704142988649,0.1,43754.0,43751.0,0.7099]
[1704142988889,0.23321711,43753.0,43751.0,0.6999]
[1704142989278,0.29315711,43753.0,43751.0,0.6999]
[1704142989527,0.29315711,43753.0,43747.0,0.1858]
[1704142989528,0.1,43750.0,43747.0,0.1858]
[1704142989750,0.23321711,43749.0,43748.0,0.01]
[1704142989970,0.23321711,43749.0,43743.0,0.1858]
[1704142989971,0.23321711,43750.0,43749.0,0.01]
[1704142990624,0.15879729,43755.0,43752.0,0.01]
[1704142990625,0.006,43755.0,43752.0,0.01]
[1704142990848,0.27767711,43754.0,43752.0,0.01]
[1704142991276,0.23321711,43754.0,43752.0,0.01]
[1704142991510,0.04758,43753.0,43752.0,0.01]
[1704142991735,0.28079711,43753.0,43752.0,0.01]
[1704142992598,0.28079711,43753.0,43752.0,0.7099]
[1704142992830,0.28179711,43753.0,43752.0,0.7099]
[1704142993235,0.23421711,43753.0,43752.0,0.7099]
[1704142993367,0.28749711,43753.0,43752.0,0.7099]
[1704142994493,0.28649711,43753.0,43752.0,0.7099]
[1704142995391,0.28649711,43753.0,43752.0,0.7119]
[1704142996664,0.23321711,43753.0,43752.0,0.7119]
[1704142997405,0.28463711,43753.0,43752.0,0.7119]
[1704142997606,0.23321711,43753.0,43752.0,0.7119]
[1704142998248,0.28943711,43753.0,43752.0,0.7119]
[1704142998689,0.23321711,43753.0,43752.0,0.7119]
[1704142998970,0.28379711,43753.0,43752.0,0.7119]
[1704143000880,0.38379711,43753.0,43752.0,0.7019]
[1704143001096,0.38379711,43753.0,43752.0,0.6999]
[1704143001097,0.45417711,43753.0,43752.0,0.6999]
[1704143001512,0.1,43752.0,43750.0,0.7099]
[1704143001733,0.23321711,43751.0,43750.0,0.7099]
[1704143001948,0.23321711,43751.0,43750.0,0.6999]
[1704143002151,0.29813711,43751.0,43750.0,0.6999]
[1704143002803,0.29813711,43751.0,43750.0,0.7009]
[1704143003018,0.29813711,43751.0,43750.0,0.6999]
[1704143003867,0.30113711,43751.0,43750.0,0.6999]
[1704143004312,0.30113711,43751.0,43750.0,0.7019]
[1704143004769,0.30113711,43751.0,43750.0,0.6999]
[1704143004982,0.76684211,43751.0,43750.0,0.6999]
[1704143005196,0.76484211,43751.0,43750.0,0.6999]
[1704143005409,0.96795678,43751.0,43750.0,0.6999]
[1704143005620,0.96795678,43751.0,43746.0,0.6999]
[1704143005621,0.1,43748.0,43746.0,0.6999]
[1704143005848,0.59895611,43747.0,43746.0,0.6999]
[1704143006317,0.65085611,43747.0,43746.0,0.6999]
[1704143006837,0.59895611,43747.0,43746.0,0.6999]
[1704143007041,0.59895611,43747.0,43746.0,0.7009]
[1704143008095,0.64947611,43747.0,43746.0,0.7059]
[1704143008317,0.64947611,43747.0,43746.0,0.7049]
[1704143008525,0.64947611,43747.0,43746.0,0.6999]
[1704143008939,0.65047611,43747.0,43746.0,0.6999]
[1704143009555,0.65047611,43747.0,43746.0,0.7099]
[1704143009968,0.65347611,43747.0,43746.0,0.7099]
[1704143011571,0.60295611,43747.0,43746.0,0.7099]
[1704143015308,0.58295611,43747.0,43746.0,0.7099]
[1704143015727,0.62699611,43747.0,43746.0,0.7099]
[1704143016107,0.58295611,43747.0,43746.0,0.7099]
[1704143016797,0.63227611,43747.0,43746.0,0.7099]
[1704143020969,0.419059,43747.0,43746.0,0.7099]
[1704143021182,0.004,43747.0,43746.0,0.76646]
[1704143021395,0.15469375,43752.0,43746.0,0.76646]
[1704143021600,0.15469375,43752.0,43746.0,0.75646]
[1704143021601,0.23321711,43751.0,43746.0,0.75646]
[1704143021808,0.23321711,43751.0,43750.0,0.01]
[1704143022233,0.24347615,43750.0,43748.0,0.01]
[1704143022452,0.24347615,43750.0,43742.0,0.05656]
[1704143022453,0.1,43748.0,43742.0,0.05656]
[1704143022674,0.23321711,43747.0,43746.0,0.001]
[1704143023166,0.28331711,43747.0,43746.0,0.001]
[1704143024205,0.23321711,43747.0,43746.0,0.001]
[1704143024438,0.23621711,43747.0,43746.0,0.012]
[1704143024656,0.003,43747.0,43746.0,0.76846]
[1704143025560,0.4153833,43747.0,43746.0,0.7009]
[1704143025774,0.4153833,43747.0,43746.0,0.7109]
[1704143026230,0.23621711,43747.0,43746.0,0.7109]
[1704143026650,0.23721711,43747.0,43746.0,0.7109]
[1704143027315,0.28503711,43747.0,43746.0,0.7109]
[1704143027525,0.28503711,43747.0,43746.0,0.7009]
[1704143027959,0.33974422,43747.0,43746.0,0.7009]
[1704143028622,0.29192422,43747.0,43746.0,0.7109]
[1704143029263,0.29192422,43747.0,43746.0,0.710372]
[1704143029468,0.23721711,43747.0,43746.0,0.710372]
[1704143029673,0.28263711,43747.0,43746.0,0.700372]
[1704143029909,0.28263711,43747.0,43746.0,0.710372]
[1704143030580,0.36463951,43747.0,43746.0,0.710372]
[1704143030803,0.55696142,43747.0,43746.0,0.700372]
[1704143031019,0.77479959,43747.0,43746.0,0.710372]
[1704143031238,0.77479959,43747.0,43746.0,0.700372]
[1704143031239,0.80213891,43747.0,43746.0,0.700372]
[1704143031418,0.80213891,43747.0,43746.0,0.710372]
[1704143031677,0.6654423,43747.0,43746.0,0.710372]
[1704143031888,0.6654423,43747.0,43746.0,0.700372]
[1704143031889,0.6968223,43747.0,43746.0,0.700372]
[1704143032528,0.6968223,43747.0,43746.0,0.000472]
[1704143033021,0.7968223,43747.0,43746.0,0.000472]
[1704143033228,1.1625613,43747.0,43746.0,0.000472]
[1704143033830,1.3782613,43747.0,43746.0,0.000472]
[1704143034690,1.21329428,43747.0,43746.0,0.010472]
[1704143035329,1.34197882,43747.0,43746.0,0.010472]
[1704143041591,1.21329428,43747.0,43746.0,0.010472]
[1704143043270,1.19547428,43747.0,43746.0,0.010472]
[1704143043479,1.19547428,43747.0,43746.0,0.710372]
[1704143044448,1.19547428,43747.0,43746.0,0.010472]
[1704143045621,1.19547428,43747.0,43746.0,0.710372]
[1704143050451,1.19547428,43747.0,43746.0,0.010472]
[1704143051503,1.19547428,43747.0,43746.0,0.710372]
[1704143052627,0.33148867,43747.0,43746.0,0.766932]
[1704143052832,0.004,43747.0,43746.0,0.766932]
[1704143054046,0.004,43747.0,43746.0,0.789932]
[1704143054638,0.05482309,43751.0,43750.0,0.06656]
[1704143055066,0.05482309,43751.0,43746.0,0.69346]
[1704143055273,0.05482309,43751.0,43747.0,0.023]
[1704143055483,0.05482309,43751.0,43750.0,0.6999]
[1704143055955,0.05482309,43752.0,43750.0,0.6999]
[1704143056158,0.001,43751.0,43750.0,0.6979]
[1704143056576,0.001,43751.0,43750.0,0.003]
[1704143057221,0.002,43751.0,43750.0,0.003]
[1704143057430,0.001,43751.0,43747.0,0.023]
[1704143057604,0.001,43751.0,43750.0,0.6999]
[1704143058025,0.05482309,43752.0,43750.0,0.6999]
[1704143058422,0.05582309,43752.0,43751.0,0.6999]
[1704143058603,0.05482309,43752.0,43751.0,0.6999]
[1704143059235,0.05482309,43753.0,43751.0,0.6999]
[1704143059595,0.2880402,43753.0,43751.0,0.6999]
[1704143059929,0.05482309,43752.0,43751.0,0.6999]
[1704143060491,0.05482309,43752.0,43751.0,0.7019]
[1704143060828,0.2880402,43753.0,43751.0,0.7049]
[1704143061253,0.2880402,43753.0,43751.0,0.6999]
[1704143061482,0.2880402,43753.0,43751.0,0.7029]
[1704143061700,0.2880402,43753.0,43751.0,0.7049]
[1704143061901,0.2880402,43753.0,43751.0,0.7029]
[1704143062112,0.2598705,43756.0,43751.0,0.6999]
[1704143062113,0.05482309,43756.0,43751.0,0.6999]
[1704143062323,0.12657787,43757.0,43752.0,0.023]
[1704143062324,0.002,43753.0,43752.0,0.023]
[1704143063221,0.002,43753.0,43752.0,0.388697]
[1704143063713,0.05482309,43762.0,43752.0,1.088597]
[1704143063915,0.05482309,43762.0,43753.0,0.09328685]
[1704143064063,0.05482309,43762.0,43754.0,0.023]
[1704143064271,0.08223787,43763.0,43752.0,1.088597]
[1704143064272,0.05482309,43763.0,43752.0,1.088597]
[1704143064443,0.2880402,43763.0,43752.0,1.088597]
[1704143064848,0.05482309,43768.0,43756.0,0.4]
[1704143065047,0.05482309,43768.0,43757.0,0.023]
[1704143065272,0.301486,43771.0,43761.0,0.4]
[1704143065477,0.301486,43771.0,43762.0,0.023]
[1704143065478,0.091486,43771.0,43762.0,0.023]
[1704143065698,0.091486,43771.0,43767.0,0.6999]
[1704143065872,0.05482309,43773.0,43767.0,0.6999]
[1704143066095,0.23321711,43772.0,43767.0,0.6999]
[1704143066272,0.26482309,43775.0,43767.0,0.6999]
[1704143066545,0.091476,43776.0,43772.0,0.6999]
[1704143067127,0.30956117,43780.0,43772.0,0.6999]
[1704143067128,0.47433808,43780.0,43772.0,0.6999]
[1704143067279,0.23321711,43779.0,43772.0,0.6999]
[1704143067473,0.001,43775.0,43772.0,0.6999]
[1704143067931,0.23321711,43779.0,43772.0,0.6999]
[1704143068145,0.23321711,43779.0,43772.0,0.7019]